[Event "Championnat d'Europe Rapide"]
[Date "2024.12.08"]
[White "Maltsevskaya, Aleksandra"]
[Black "Pantsulaia, Levan"]
[WhiteElo "2368"]
[BlackElo "2522"]
[Round "11.41"]
[Result "0-1"]
[TimeControl "900+10"]

1. e4 {[%emt 00:00:03] [%clk 00:15:17]} c5 {[%emt 00:00:47] [%clk 00:14:32]} 2.
Nf3 {[%emt 00:00:02] [%clk 00:15:25]} e6 {[%emt 00:00:02] [%clk 00:14:41]} 3. d4
{[%emt 00:00:06] [%clk 00:15:29]} cxd4 {[%emt 00:00:02] [%clk 00:14:49]} 4. Nxd4
{[%emt 00:00:02] [%clk 00:15:37]} a6 {[%emt 00:00:01] [%clk 00:14:57]} 5. Bd3
{[%emt 00:00:03] [%clk 00:15:45]} d5 {[%emt 00:00:02] [%clk 00:15:06]} 6. O-O
{[%emt 00:00:16] [%clk 00:15:38]} dxe4 {[%emt 00:00:02] [%clk 00:15:14]} 7. Bxe4
{[%emt 00:00:02] [%clk 00:15:47]} Nf6 {[%emt 00:00:01] [%clk 00:15:22]} 8. Bg5
{[%emt 00:01:14] [%clk 00:14:42]} Nbd7 {[%emt 00:00:24] [%clk 00:15:08]} 9. c3
{[%emt 00:00:45] [%clk 00:14:07]} h6 {[%emt 00:00:20] [%clk 00:14:58]} 10. Bxf6
{[%emt 00:00:04] [%clk 00:14:14]} Nxf6 {[%emt 00:00:05] [%clk 00:15:02]} 11. Bc2
{[%emt 00:00:03] [%clk 00:14:20]} Bd6 {[%emt 00:00:11] [%clk 00:15:02]} 12. Nd2
{[%emt 00:00:09] [%clk 00:14:21]} Qc7 {[%emt 00:00:48] [%clk 00:14:25]} 13. h3
{[%emt 00:00:11] [%clk 00:14:19]} Bd7 {[%emt 00:00:07] [%clk 00:14:28]} 14. Qf3
{[%emt 00:00:25] [%clk 00:14:04]} Bh2+ {[%emt 00:02:02] [%clk 00:12:37]} 15. Kh1
{[%emt 00:00:01] [%clk 00:14:13]} Be5 {[%emt 00:00:03] [%clk 00:12:44]} 16. Rac1
{[%emt 00:02:01] [%clk 00:12:22]} O-O {[%emt 00:00:35] [%clk 00:12:19]} 17. Ne4
{[%emt 00:00:30] [%clk 00:12:01]} Nxe4 {[%emt 00:00:48] [%clk 00:11:41]} 18.
Qxe4 {[%emt 00:00:18] [%clk 00:11:53]} g6 {[%emt 00:00:02] [%clk 00:11:48]} 19.
Rcd1 {[%emt 00:00:09] [%clk 00:11:54]} Bg7 {[%emt 00:00:04] [%clk 00:11:54]} 20.
Bb3 {[%emt 00:01:31] [%clk 00:10:34]} Rad8 {[%emt 00:00:10] [%clk 00:11:54]} 21.
Rd2 {[%emt 00:01:35] [%clk 00:09:09]} e5 {[%emt 00:00:18] [%clk 00:11:46]} 22.
Nf3 {[%emt 00:00:16] [%clk 00:09:03]} Bf5 {[%emt 00:01:03] [%clk 00:10:52]} 23.
Qe2 {[%emt 00:01:28] [%clk 00:07:44]} Rxd2 {[%emt 00:00:24] [%clk 00:10:38]} 24.
Nxd2 {[%emt 00:00:02] [%clk 00:07:52]} Rd8 {[%emt 00:00:22] [%clk 00:10:25]} 25.
Ne4 {[%emt 00:01:31] [%clk 00:06:31]} Qc6 {[%emt 00:00:03] [%clk 00:10:32]} 26.
Re1 {[%emt 00:00:01] [%clk 00:06:40]} Be6 {[%emt 00:00:39] [%clk 00:10:03]} 27.
Bxe6 {[%emt 00:00:35] [%clk 00:06:15]} Qxe6 {[%emt 00:00:02] [%clk 00:10:11]}
28. c4 {[%emt 00:00:02] [%clk 00:06:23]} f5 {[%emt 00:01:11] [%clk 00:09:09]}
29. Nc3 {[%emt 00:00:02] [%clk 00:06:32]} e4 {[%emt 00:00:01] [%clk 00:09:17]}
30. Nd5 {[%emt 00:00:02] [%clk 00:06:41]} b5 {[%emt 00:00:04] [%clk 00:09:23]}
31. b3 {[%emt 00:00:04] [%clk 00:06:47]} bxc4 {[%emt 00:00:02] [%clk 00:09:31]}
32. bxc4 {[%emt 00:00:01] [%clk 00:06:55]} Qf7 {[%emt 00:00:22] [%clk 00:09:19]}
33. Rd1 {[%emt 00:00:32] [%clk 00:06:33]} Rc8 {[%emt 00:00:15] [%clk 00:09:13]}
34. f3 {[%emt 00:02:13] [%clk 00:04:31]} exf3 {[%emt 00:00:10] [%clk 00:09:14]}
35. Qxf3 {[%emt 00:00:02] [%clk 00:04:40]} Rxc4 {[%emt 00:00:40] [%clk
00:08:44]} 36. Qb3 {[%emt 00:00:02] [%clk 00:04:47]} Re4 {[%emt 00:00:02] [%clk
00:08:52]} 37. Qb6 {[%emt 00:03:41] [%clk 00:01:17]} Qe6 {[%emt 00:00:23] [%clk
00:08:39]} 38. Qxe6+ {[%emt 00:01:07] [%clk 00:00:20]} Rxe6 {[%emt 00:00:03]
[%clk 00:08:45]} 39. Nc7 {[%emt 00:00:01] [%clk 00:00:29]} Rc6 {[%emt 00:00:07]
[%clk 00:08:48]} 40. Rd8+ {[%emt 00:00:02] [%clk 00:00:37]} Bf8 {[%emt 00:00:20]
[%clk 00:08:38]} 41. Nd5 {[%emt 00:00:34] [%clk 00:00:13]} Kf7 {[%emt 00:00:03]
[%clk 00:08:44]} 42. Kg1 {[%emt 00:00:10] [%clk 00:00:14]} Rd6 {[%emt 00:00:35]
[%clk 00:08:19]} 43. Rxd6 {[%emt 00:00:03] [%clk 00:00:21]} Bxd6 {[%emt
00:00:01] [%clk 00:08:28]} 44. Kf2 {[%emt 00:00:01] [%clk 00:00:30]} Ke6 {[%emt
00:00:04] [%clk 00:08:33]} 45. Nc3 {[%emt 00:00:02] [%clk 00:00:38]} Be5 {[%emt
00:00:05] [%clk 00:08:38]} 46. Ne2 {[%emt 00:00:30] [%clk 00:00:18]} Kd5 {[%emt
00:00:16] [%clk 00:08:31]} 47. Ke3 {[%emt 00:00:01] [%clk 00:00:27]} Kc4 {[%emt
00:00:03] [%clk 00:08:39]} 48. h4 {[%emt 00:00:05] [%clk 00:00:32]} Kb4 {[%emt
00:00:07] [%clk 00:08:41]} 49. Nc1 {[%emt 00:00:28] [%clk 00:00:15]} Ka3 {[%emt
00:00:02] [%clk 00:08:49]} 50. Nd3 {[%emt 00:00:02] [%clk 00:00:23]} Bf6 {[%emt
00:00:14] [%clk 00:08:44]} 51. h5 {[%emt 00:00:19] [%clk 00:00:15]} g5 {[%emt
00:00:02] [%clk 00:08:52]} 52. Kd2 {[%emt 00:00:12] [%clk 00:00:13]} a5 {[%emt
00:00:05] [%clk 00:08:57]} 53. Nc1 {[%emt 00:00:12] [%clk 00:00:12]} Kb2 {[%emt
00:00:43] [%clk 00:08:24]} 54. Nb3 {[%emt 00:00:05] [%clk 00:00:17]} g4 {[%emt
00:00:55] [%clk 00:07:38]} 55. Nxa5 {[%emt 00:00:10] [%clk 00:00:18]} Bc3 {[%emt
00:00:13] [%clk 00:07:35]} 56. Ke3 {[%clk 00:00:27]} Bxa5 {[%emt 00:00:02] [%clk
00:07:43]} 57. Kf4 {[%emt 00:00:02] [%clk 00:00:34]} Kxa2 {[%emt 00:00:16] [%clk
00:07:37]} 58. Kxf5 {[%emt 00:00:02] [%clk 00:00:42]} g3 {[%emt 00:00:02] [%clk
00:07:45]} 59. Kf4 {[%emt 00:00:40] [%clk 00:00:13]} Be1 {[%emt 00:00:04] [%clk
00:07:50]} 60. Ke3 {[%emt 00:00:11] [%clk 00:00:12]} Kb3 {[%emt 00:00:09] [%clk
00:07:51]} 61. Ke2 {[%emt 00:00:03] [%clk 00:00:19]} Bf2 {[%emt 00:00:02] [%clk
00:07:58]} 62. Kd3 {[%emt 00:00:17] [%clk 00:00:13]} Kb4 {[%emt 00:00:09] [%clk
00:08:00]} 63. Kd2 {[%emt 00:00:10] [%clk 00:00:13]} Kc4 {[%emt 00:00:03] [%clk
00:08:07]} 64. Ke2 {[%emt 00:00:01] [%clk 00:00:22]} Kd4 {[%emt 00:00:04] [%clk
00:08:13]} 65. Kd2 {[%emt 00:00:19] [%clk 00:00:13]} Ke4 {[%emt 00:00:04] [%clk
00:08:18]} 66. Ke2 {[%emt 00:00:01] [%clk 00:00:22]} Kf4 {[%emt 00:00:17] [%clk
00:08:10]} 67. Kd3 {[%emt 00:00:01] [%clk 00:00:32]} Kg4 {[%clk 00:08:19]} 68.
Ke4 {[%emt 00:00:01] [%clk 00:00:41]} Kxh5 {[%emt 00:00:01] [%clk 00:08:28]} 69.
Kf5 {[%emt 00:00:01] [%clk 00:00:50]} Bb6 {[%emt 00:00:08] [%clk 00:08:30]} 70.
Kf4 {[%emt 00:00:44] [%clk 00:00:16]} Bc7+ {[%emt 00:00:03] [%clk 00:08:37]} 71.
Kf3 {[%emt 00:00:01] [%clk 00:00:25]} Kg5 {[%emt 00:00:04] [%clk 00:08:42]} 72.
Ke2 {[%emt 00:00:01] [%clk 00:00:34]} Kf4 {[%emt 00:00:05] [%clk 00:08:47]} 73.
Kf1 {[%emt 00:00:02] [%clk 00:00:43]} Bb6 {[%emt 00:00:01] [%clk 00:08:56]} 0-1

[Site "Europe Echecs"]

[Event "Championnat d'Europe Rapide"]
[Date "2024.12.08"]
[White "Cvitan, Ognjen"]
[Black "Ribeiro, Gustavo"]
[WhiteElo "2413"]
[BlackElo "2241"]
[Round "11.42"]
[Result "0-1"]
[TimeControl "900+10"]

1. d4 {[%emt 00:00:03] [%clk 00:15:16]} Nf6 {[%emt 00:00:04] [%clk 00:15:16]} 2.
c4 {[%clk 00:15:25]} a6 {[%emt 00:00:01] [%clk 00:15:25]} 3. Nc3 {[%emt
00:00:17] [%clk 00:15:19]} c5 {[%emt 00:00:04] [%clk 00:15:32]} 4. e3 {[%emt
00:00:09] [%clk 00:15:19]} cxd4 {[%emt 00:00:03] [%clk 00:15:39]} 5. exd4 {[%emt
00:00:01] [%clk 00:15:28]} d5 {[%emt 00:00:01] [%clk 00:15:47]} 6. Nf3 {[%emt
00:00:26] [%clk 00:15:12]} e6 {[%emt 00:00:07] [%clk 00:15:51]} 7. cxd5 {[%emt
00:00:11] [%clk 00:15:12]} Nxd5 {[%emt 00:00:04] [%clk 00:15:57]} 8. Bd3 {[%emt
00:00:03] [%clk 00:15:18]} Be7 {[%emt 00:00:27] [%clk 00:15:40]} 9. O-O {[%emt
00:00:03] [%clk 00:15:25]} O-O {[%emt 00:00:03] [%clk 00:15:47]} 10. Re1 {[%emt
00:00:02] [%clk 00:15:33]} Nc6 {[%emt 00:00:12] [%clk 00:15:45]} 11. a3 {[%emt
00:00:04] [%clk 00:15:39]} Nxc3 {[%emt 00:00:44] [%clk 00:15:11]} 12. bxc3
{[%emt 00:00:01] [%clk 00:15:48]} b5 {[%emt 00:00:02] [%clk 00:15:20]} 13. h4
{[%emt 00:00:06] [%clk 00:15:51]} Bb7 {[%emt 00:00:13] [%clk 00:15:17]} 14. Ng5
{[%emt 00:00:07] [%clk 00:15:55]} g6 {[%emt 00:00:50] [%clk 00:14:37]} 15. Qg4
{[%emt 00:04:23] [%clk 00:11:41]} h5 {[%emt 00:03:22] [%clk 00:11:25]} 16. Qg3
{[%emt 00:00:32] [%clk 00:11:19]} Bd6 {[%emt 00:00:17] [%clk 00:11:19]} 17. Qh3
{[%emt 00:01:03] [%clk 00:10:26]} Ne7 {[%emt 00:00:23] [%clk 00:11:06]} 18. g4
{[%emt 00:00:25] [%clk 00:10:11]} Nd5 {[%emt 00:02:06]} 19. gxh5 {[%emt
00:00:01] [%clk 00:10:08]} Nf4 {[%emt 00:00:07] [%clk 00:09:25]} 20. Bxf4 {[%emt
00:00:55] [%clk 00:09:23]} Bxf4 {[%emt 00:00:01] [%clk 00:09:33]} 21. Qg4 {[%emt
00:00:31] [%clk 00:09:02]} Bxg5 {[%emt 00:03:10] [%clk 00:06:33]} 22. hxg5
{[%emt 00:00:01] [%clk 00:09:10]} Kg7 {[%emt 00:00:02] [%clk 00:06:42]} 23. hxg6
{[%emt 00:00:31] [%clk 00:08:49]} Rh8 {[%emt 00:00:07] [%clk 00:06:45]} 24. f3
{[%emt 00:02:05] [%clk 00:06:55]} Qc7 {[%emt 00:00:12] [%clk 00:06:42]} 25. Re5
{[%emt 00:02:19] [%clk 00:04:46]} Qxc3 {[%emt 00:00:19] [%clk 00:06:33]} 26. Rd1
{[%emt 00:00:23] [%clk 00:04:34]} Qb3 {[%emt 00:02:01] [%clk 00:04:42]} 27. Ree1
{[%emt 00:00:51] [%clk 00:03:52]} Qxa3 {[%emt 00:01:04] [%clk 00:03:48]} 28.
gxf7 {[%emt 00:00:58] [%clk 00:03:04]} Qd6 {[%emt 00:01:32] [%clk 00:02:26]} 29.
Rd2 {[%emt 00:00:19] [%clk 00:02:55]} Rad8 {[%emt 00:00:46] [%clk 00:01:51]} 30.
Be4 {[%emt 00:01:02] [%clk 00:02:02]} Bc8 {[%emt 00:00:24] [%clk 00:01:38]} 31.
g6 {[%emt 00:00:29] [%clk 00:01:43]} e5 {[%emt 00:00:15] [%clk 00:01:33]} 32.
Qg5 {[%emt 00:00:02] [%clk 00:01:51]} exd4 {[%emt 00:00:06] [%clk 00:01:38]} 33.
Rc1 {[%emt 00:00:25] [%clk 00:01:36]} Rh3 {[%emt 00:00:15] [%clk 00:01:33]} 34.
Rg2 {[%emt 00:00:42] [%clk 00:01:04]} d3 {[%emt 00:00:35] [%clk 00:01:08]} 35.
Qe3 {[%emt 00:00:09] [%clk 00:01:05]} Rg3 {[%emt 00:00:48] [%clk 00:00:31]} 36.
Rd1 {[%emt 00:00:30] [%clk 00:00:45]} Bh3 {[%emt 00:00:05] [%clk 00:00:36]} 0-1

[Site "Europe Echecs"]

[Event "Championnat d'Europe Rapide"]
[Date "2024.12.08"]
[White "Stefanova, Antoaneta"]
[Black "Dragicevic, Drazen"]
[WhiteElo "2418"]
[BlackElo "2332"]
[Round "11.44"]
[Result "0-1"]
[TimeControl "900+10"]

1. d4 {[%clk 00:15:19]} Nf6 {[%emt 00:00:07] [%clk 00:15:13]} 2. Nf3 {[%emt
00:00:03] [%clk 00:15:27]} b6 {[%emt 00:00:06] [%clk 00:15:17]} 3. Bf4 {[%emt
00:00:26] [%clk 00:15:10]} Bb7 {[%emt 00:00:08] [%clk 00:15:20]} 4. e3 {[%emt
00:00:02] [%clk 00:15:18]} e6 {[%emt 00:00:30] [%clk 00:14:59]} 5. h3 {[%emt
00:00:23] [%clk 00:15:05]} c5 {[%emt 00:00:10] [%clk 00:15:00]} 6. Nbd2 {[%emt
00:00:11] [%clk 00:15:04]} Be7 {[%emt 00:00:18] [%clk 00:14:51]} 7. Bd3 {[%emt
00:00:22] [%clk 00:14:53]} Nc6 {[%emt 00:00:19] [%clk 00:14:42]} 8. c3 {[%emt
00:00:07] [%clk 00:14:56]} d6 {[%emt 00:00:47] [%clk 00:14:05]} 9. Bh2 {[%emt
00:00:19] [%clk 00:14:46]} O-O {[%emt 00:00:21] [%clk 00:13:55]} 10. O-O {[%emt
00:00:11] [%clk 00:14:45]} Re8 {[%emt 00:00:14] [%clk 00:13:51]} 11. Qe2 {[%emt
00:00:13] [%clk 00:14:42]} a6 {[%emt 00:01:15] [%clk 00:12:46]} 12. a4 {[%emt
00:00:01] [%clk 00:14:51]} Bf8 {[%emt 00:00:03] [%clk 00:12:53]} 13. Rfd1 {[%emt
00:01:45] [%clk 00:13:16]} Qb8 {[%emt 00:04:38] [%clk 00:08:24]} 14. Nc4 {[%emt
00:01:06] [%clk 00:12:20]} b5 {[%emt 00:01:00] [%clk 00:07:35]} 15. Na3 {[%emt
00:03:08] [%clk 00:09:22]} c4 {[%emt 00:00:56] [%clk 00:06:49]} 16. Bc2 {[%emt
00:00:02] [%clk 00:09:30]} Bc8 {[%emt 00:00:35] [%clk 00:06:23]} 17. b3 {[%emt
00:01:54] [%clk 00:07:47]} cxb3 {[%emt 00:00:34] [%clk 00:06:00]} 18. Bxb3
{[%emt 00:00:02] [%clk 00:07:54]} Na5 {[%emt 00:00:39] [%clk 00:05:30]} 19. Bc2
{[%emt 00:00:10] [%clk 00:07:55]} Bd7 {[%emt 00:00:36] [%clk 00:05:03]} 20. axb5
{[%emt 00:02:12] [%clk 00:05:53]} axb5 {[%emt 00:00:05] [%clk 00:05:08]} 21. Bd3
{[%emt 00:01:07] [%clk 00:04:57]} Nd5 {[%emt 00:02:38] [%clk 00:02:40]} 22. Ng5
{[%emt 00:01:59] [%clk 00:03:08]} g6 {[%emt 00:00:19] [%clk 00:02:31]} 23. Qb2
{[%emt 00:01:47] [%clk 00:01:31]} b4 {[%emt 00:00:14] [%clk 00:02:27]} 24. cxb4
{[%emt 00:00:30] [%clk 00:01:11]} Qxb4 {[%emt 00:00:02] [%clk 00:02:35]} 25.
Rdb1 {[%emt 00:00:22] [%clk 00:00:58]} Qxb2 {[%emt 00:01:15] [%clk 00:01:30]}
26. Rxb2 {[%emt 00:00:02] [%clk 00:01:08]} Nf6 {[%emt 00:00:59] [%clk 00:00:40]}
27. Nb5 {[%emt 00:00:36] [%clk 00:00:42]} Bxb5 {[%emt 00:00:20] [%clk 00:00:31]}
28. Rxb5 {[%emt 00:00:11] [%clk 00:00:40]} Nc6 {[%emt 00:00:21] [%clk 00:00:20]}
29. Rc1 {[%emt 00:00:20] [%clk 00:00:30]} Nb8 {[%emt 00:00:17] [%clk 00:00:13]}
30. Rb7 {[%emt 00:00:08] [%clk 00:00:33]} Nbd7 {[%emt 00:00:01] [%clk 00:00:21]}
31. e4 {[%emt 00:00:11] [%clk 00:00:32]} h6 {[%emt 00:00:01] [%clk 00:00:29]}
32. Nf3 {[%emt 00:00:05] [%clk 00:00:38]} Reb8 {[%emt 00:00:16] [%clk 00:00:23]}
33. Rbc7 {[%emt 00:00:07] [%clk 00:00:40]} Rd8 {[%emt 00:00:21] [%clk 00:00:13]}
34. Bb5 {[%emt 00:00:21] [%clk 00:00:29]} Nb6 {[%emt 00:00:03] [%clk 00:00:20]}
35. e5 {[%emt 00:00:17] [%clk 00:00:22]} Nfd5 {[%emt 00:00:07] [%clk 00:00:22]}
36. Rb7 {[%emt 00:00:07] [%clk 00:00:26]} Rdc8 {[%emt 00:00:16] [%clk 00:00:16]}
37. Re1 {[%emt 00:00:16] [%clk 00:00:19]} Rc7 {[%emt 00:00:12] [%clk 00:00:15]}
38. Rxc7 {[%emt 00:00:01] [%clk 00:00:28]} Nxc7 {[%emt 00:00:02] [%clk
00:00:24]} 39. Bc6 {[%emt 00:00:02] [%clk 00:00:35]} Rd8 {[%clk 00:00:33]} 40.
Rb1 {[%emt 00:00:04] [%clk 00:00:42]} Ncd5 {[%emt 00:00:06] [%clk 00:00:36]} 41.
Nd2 {[%emt 00:00:29] [%clk 00:00:23]} dxe5 {[%emt 00:00:04] [%clk 00:00:43]} 42.
dxe5 {[%emt 00:00:04] [%clk 00:00:28]} Nc3 {[%emt 00:00:15] [%clk 00:00:37]} 43.
Rxb6 {[%emt 00:00:08] [%clk 00:00:31]} Rxd2 {[%emt 00:00:01] [%clk 00:00:46]}
44. Bf4 {[%emt 00:00:02] [%clk 00:00:39]} Ne2+ {[%emt 00:00:02] [%clk 00:00:54]}
45. Kf1 {[%emt 00:00:02] [%clk 00:00:47]} Nxf4 {[%emt 00:00:02] [%clk 00:01:02]}
46. Ke1 {[%emt 00:00:05] [%clk 00:00:51]} Re2+ {[%emt 00:00:03] [%clk 00:01:09]}
47. Kd1 {[%emt 00:00:02] [%clk 00:00:59]} Rxe5 {[%emt 00:00:03] [%clk 00:01:17]}
0-1

[Site "Europe Echecs"]

[Event "Championnat d'Europe Rapide"]
[Date "2024.12.08"]
[White "Aymerich Verdaguer, Eduard"]
[Black "Pancevski, Filip"]
[WhiteElo "2163"]
[BlackElo "2420"]
[Round "11.45"]
[Result "0-1"]
[TimeControl "900+10"]

1. d4 {[%clk 00:15:18]} Nf6 {[%emt 00:00:02] [%clk 00:15:20]} 2. c4 {[%emt
00:00:01] [%clk 00:15:27]} g6 {[%emt 00:00:01] [%clk 00:15:29]} 3. Nc3 {[%emt
00:00:19] [%clk 00:15:18]} Bg7 {[%emt 00:00:01] [%clk 00:15:38]} 4. e4 {[%emt
00:00:01] [%clk 00:15:27]} d6 {[%clk 00:15:47]} 5. h3 {[%emt 00:00:33] [%clk
00:15:04]} O-O {[%emt 00:00:03] [%clk 00:15:54]} 6. Bg5 {[%emt 00:00:01] [%clk
00:15:12]} Na6 {[%emt 00:00:22] [%clk 00:15:44]} 7. g4 {[%emt 00:02:20] [%clk
00:13:01]} c5 {[%emt 00:00:34] [%clk 00:15:19]} 8. d5 {[%emt 00:00:08] [%clk
00:13:04]} Nc7 {[%emt 00:00:10] [%clk 00:15:19]} 9. a4 {[%emt 00:00:04] [%clk
00:13:10]} e6 {[%emt 00:00:03] [%clk 00:15:26]} 10. Bd3 {[%emt 00:00:16] [%clk
00:13:04]} exd5 {[%emt 00:00:06] [%clk 00:15:30]} 11. exd5 {[%emt 00:00:01]
[%clk 00:13:13]} Qe8+ {[%emt 00:00:14] [%clk 00:15:26]} 12. Qe2 {[%emt 00:00:29]
[%clk 00:12:53]} a6 {[%emt 00:01:17] [%clk 00:14:20]} 13. Nf3 {[%emt 00:02:38]
[%clk 00:10:25]} Rb8 {[%emt 00:00:07] [%clk 00:14:22]} 14. a5 {[%emt 00:00:58]
[%clk 00:09:38]} b5 {[%emt 00:00:15] [%clk 00:14:17]} 15. axb6 {[%emt 00:00:07]
[%clk 00:09:42]} Rxb6 {[%clk 00:14:25]} 16. Ra2 {[%emt 00:00:15] [%clk
00:09:36]} Qd7 {[%emt 00:00:37] [%clk 00:13:58]} 17. Kd2 {[%emt 00:00:36] [%clk
00:09:10]} Re8 {[%emt 00:00:30] [%clk 00:13:38]} 18. Qd1 {[%emt 00:00:01] [%clk
00:09:19]} Rb4 {[%emt 00:00:19] [%clk 00:13:30]} 19. Re1 {[%emt 00:00:33] [%clk
00:08:56]} Rxe1 {[%emt 00:00:36] [%clk 00:13:04]} 20. Qxe1 {[%clk 00:09:05]} h5
{[%emt 00:01:06] [%clk 00:12:07]} 21. Nh2 {[%emt 00:02:33] [%clk 00:06:43]} hxg4
{[%emt 00:00:12] [%clk 00:12:05]} 22. Bxf6 {[%emt 00:00:02] [%clk 00:06:51]}
Bxf6 {[%emt 00:00:01] [%clk 00:12:13]} 23. Nxg4 {[%emt 00:00:03] [%clk
00:06:58]} Bg7 {[%emt 00:01:37] [%clk 00:10:46]} 24. Kc2 {[%emt 00:01:01] [%clk
00:06:08]} Qd8 {[%emt 00:00:12] [%clk 00:10:43]} 25. Qe3 {[%emt 00:00:52] [%clk
00:05:26]} Ne8 {[%emt 00:01:23] [%clk 00:09:31]} 26. Ra1 {[%emt 00:00:50] [%clk
00:04:46]} Nf6 {[%emt 00:01:00] [%clk 00:08:41]} 27. Nh6+ {[%emt 00:00:01] [%clk
00:04:54]} Kf8 {[%emt 00:00:03] [%clk 00:08:48]} 28. Rg1 {[%emt 00:00:24] [%clk
00:04:41]} Rb7 {[%emt 00:00:56] [%clk 00:08:02]} 29. Qg5 {[%emt 00:00:49] [%clk
00:04:01]} Qb6 {[%emt 00:00:22] [%clk 00:07:51]} 30. Rb1 {[%emt 00:02:22] [%clk
00:01:49]} Qb3+ {[%emt 00:00:09] [%clk 00:07:52]} 31. Kd2 {[%emt 00:00:01] [%clk
00:01:58]} Bxh3 {[%emt 00:00:54] [%clk 00:07:07]} 32. f4 {[%emt 00:00:19] [%clk
00:01:49]} Re7 {[%emt 00:00:42] [%clk 00:06:35]} 33. f5 {[%emt 00:01:06] [%clk
00:00:54]} Re5 {[%emt 00:03:00] [%clk 00:03:45]} 34. Nxf7 {[%emt 00:00:17] [%clk
00:00:47]} Kxf7 {[%emt 00:00:19] [%clk 00:03:36]} 35. Qxg6+ {[%clk 00:00:55]}
Kf8 {[%emt 00:00:04] [%clk 00:03:42]} 36. Rg1 {[%emt 00:00:08] [%clk 00:00:58]}
Qxb2+ {[%emt 00:00:12] [%clk 00:03:40]} 37. Bc2 {[%clk 00:01:07]} Qxc2+ {[%emt
00:00:13] [%clk 00:03:37]} 38. Kxc2 {[%emt 00:00:04] [%clk 00:01:13]} Bxf5+
{[%emt 00:00:02] [%clk 00:03:45]} 39. Qxf5 {[%emt 00:00:14] [%clk 00:01:09]}
Rxf5 {[%emt 00:00:01] [%clk 00:03:54]} 40. Ra1 {[%clk 00:01:18]} Rf2+ {[%emt
00:00:01] [%clk 00:04:01]} 41. Kd3 {[%emt 00:00:12] [%clk 00:01:17]} Rf3+ {[%emt
00:00:02] [%clk 00:04:09]} 42. Kd2 {[%emt 00:00:01] [%clk 00:01:26]} Rxc3 {[%emt
00:00:08] [%clk 00:04:11]} 43. Rxa6 {[%emt 00:00:02] [%clk 00:01:35]} Rxc4
{[%emt 00:00:03] [%clk 00:04:18]} 44. Rxd6 {[%emt 00:00:02] [%clk 00:01:44]}
Ne4+ {[%clk 00:04:26]} 0-1

[Site "Europe Echecs"]